bitfinex/quotes_ETHUSD_20251214
["timestamp","ask_amount","ask_price","bid_price","bid_amount"]
[1765705270272,4.33780691,3113.9,3113.8,0.002]
[1765705270470,4.83201641,3113.9,3113.8,0.002]
[1765705271885,1.6206095,3113.9,3113.8,0.002]
[1765705272104,1.71689759,3113.9,3113.8,0.002]
[1765705274008,4.9283045,3113.9,3113.8,0.002]
[1765705275610,1.71689759,3113.9,3113.8,0.002]
[1765705284015,4.9283045,3113.9,3113.8,0.002]
[1765705284782,1.71689759,3113.9,3113.8,0.002]
[1765705285016,0.75758809,3113.9,3113.8,0.002]
[1765705285214,0.57548809,3113.9,3113.8,0.002]
[1765705285515,1.06518809,3113.9,3113.8,0.002]
[1765705285808,1.57218809,3113.9,3113.8,0.002]
[1765705285987,0.4792,3113.9,3113.8,0.002]
[1765705286187,3.95655454,3114.1,3113.8,0.9741]
[1765705286188,0.001,3114.1,3113.8,0.9741]
[1765705286508,0.001,3114.1,3114.0,4.80920171]
[1765705286715,0.508,3114.1,3114.0,5.33973188]
[1765705287013,0.508,3114.1,3114.0,5.83383188]
[1765705287899,0.001,3114.1,3114.0,9.04513566]
[1765705288091,0.508,3114.1,3114.0,9.04513566]
[1765705291614,0.508,3114.1,3114.0,4.71393395]
[1765705291908,0.508,3114.1,3114.0,9.04513566]
[1765705292209,0.508,3114.1,3114.0,9.04574992]
[1765705293111,0.001,3114.1,3114.0,9.04574992]
[1765705293302,0.508,3114.1,3114.0,9.04574992]
[1765705297819,0.508,3114.1,3114.0,5.83444614]
[1765705298923,0.508,3114.1,3114.0,5.34034614]
[1765705299139,0.508,3114.1,3114.0,0.53053017]
[1765705299333,0.80783063,3114.1,3114.0,1.00853017]
[1765705299914,1.30143063,3114.1,3113.8,0.002]
[1765705300104,0.4936,3113.9,3113.8,0.002]
[1765705300426,0.508,3114.1,3113.8,0.4961]
[1765705300603,0.29990639,3114.0,3113.8,0.9741]
[1765705300798,0.508,3114.1,3113.8,0.48]
[1765705301024,0.30010718,3114.0,3113.8,0.48]
[1765705301225,0.9724,3114.1,3113.8,0.48]
[1765705301398,0.30011942,3114.0,3113.8,0.48]
[1765705301603,0.9724,3114.1,3113.8,0.48]
[1765705301802,0.30011991,3114.0,3113.8,0.48]
[1765705302106,0.4936,3113.9,3113.8,0.002]
[1765705304728,1.0006,3113.9,3113.8,0.002]
[1765705306736,1.465,3113.9,3113.8,0.002]
[1765705307544,1.76513658,3113.9,3113.8,0.002]
[1765705309944,1.30073658,3113.9,3113.8,0.002]
[1765705310326,1.76513658,3113.9,3113.8,0.002]
[1765705311937,0.80713658,3113.9,3113.8,0.48]
[1765705312442,0.80713658,3113.9,3113.8,0.002]
[1765705312848,1.30073658,3113.9,3113.8,0.002]
[1765705314222,1.30077291,3113.9,3113.8,0.002]
[1765705314423,0.30017291,3113.9,3113.8,0.002]
[1765705314623,0.80717291,3113.9,3113.8,0.002]
[1765705319426,1.26017291,3113.9,3113.8,0.002]
[1765705319764,1.26017291,3113.9,3113.4,0.002]
[1765705319765,0.405504,3113.8,3113.4,0.002]
[1765705319965,0.76337529,3113.5,3113.4,0.002]
[1765705320126,0.99007291,3113.5,3113.4,0.002]
[1765705320326,1.46707291,3113.5,3113.4,0.002]
[1765705320551,1.67182773,3113.5,3113.4,0.002]
[1765705322029,5.46412251,3113.5,3113.4,0.002]
[1765705322658,5.46360662,3113.5,3113.4,0.002]
[1765705326462,0.68731184,3113.5,3113.4,0.002]
[1765705326670,4.01847651,3113.5,3113.4,0.4682]
[1765705326969,4.01847651,3113.5,3113.4,0.002]
[1765705327143,4.47147651,3113.5,3113.4,0.002]
[1765705327545,1.25965702,3113.5,3113.4,0.002]
[1765705328467,4.01847651,3113.5,3113.4,0.4682]
[1765705328656,4.79881568,3113.5,3113.4,0.4682]
[1765705329170,4.79881568,3113.5,3113.4,0.002]
[1765705329764,5.25181568,3113.5,3113.4,0.002]
[1765705330570,4.74481568,3113.5,3113.4,0.002]
[1765705330748,5.25181568,3113.5,3113.4,0.002]
[1765705331872,0.80665702,3113.5,3113.4,0.9291]
[1765705332775,0.80665702,3113.5,3113.4,0.4682]
[1765705333071,4.47147651,3113.5,3113.4,0.002]
[1765705336470,1.25965702,3113.5,3113.4,0.002]
[1765705337066,0.80665702,3113.5,3113.4,0.002]
[1765705337379,4.01847651,3113.5,3113.4,0.9291]
[1765705337584,4.75111493,3113.5,3113.4,0.4682]
[1765705338683,1.53929544,3113.5,3113.4,0.4682]
[1765705339384,4.75111493,3113.5,3113.4,0.4682]
[1765705339680,1.53929544,3113.5,3113.4,0.4682]
[1765705339984,4.75111493,3113.5,3113.4,0.4682]
[1765705341455,5.68111493,3113.5,3113.4,0.002]
[1765705341656,5.20411493,3113.5,3113.4,0.002]
[1765705341889,5.68111493,3113.5,3113.4,0.002]
[1765705348899,5.20411493,3113.5,3113.4,0.002]
[1765705349560,4.75111493,3113.5,3113.4,0.002]
[1765705350614,4.75111493,3113.5,3113.4,0.4957]
[1765705351116,4.75111493,3113.5,3113.4,0.982]
[1765705351322,4.75111493,3113.5,3113.4,0.4957]
[1765705352703,4.01847651,3113.5,3113.4,0.4957]
[1765705353199,4.01847651,3113.5,3113.4,0.002]
[1765705353698,4.47377651,3113.5,3113.4,0.002]
[1765705356492,4.93357651,3113.5,3113.4,0.002]
[1765705356702,5.0298646,3113.5,3113.4,0.002]
[1765705356892,6.61835528,3113.5,3113.4,0.002]
[1765705359017,2.94673579,3113.5,3113.4,0.002]
[1765705359307,6.15855528,3113.5,3113.4,0.002]
[1765705359484,4.5700646,3113.5,3113.4,0.002]
[1765705361507,4.1147646,3113.5,3113.4,0.002]
[1765705362616,4.1147646,3113.5,3113.4,0.4957]
[1765705362828,4.5700646,3113.5,3113.4,0.002]
[1765705362981,5.0298646,3113.5,3113.4,0.002]
[1765705363303,5.86364239,3113.5,3113.4,0.002]
[1765705368614,4.94854239,3113.5,3113.4,0.4957]
[1765705371996,5.30151639,3113.5,3113.4,0.002]
[1765705372296,5.76131639,3113.5,3113.4,0.002]
[1765705373914,4.9275386,3113.5,3113.4,0.002]
[1765705375196,4.4677386,3113.5,3113.4,0.002]
[1765705375522,4.9275386,3113.5,3113.4,0.002]
[1765705377817,1.29511911,3113.5,3113.4,0.002]
[1765705378508,0.70433102,3113.5,3113.4,0.4947]
[1765705378897,3.91615051,3113.5,3113.4,0.4947]
[1765705380426,0.70433102,3113.5,3113.4,0.9806]
[1765705380924,3.91615051,3113.5,3113.4,0.9806]
[1765705381103,4.0124386,3113.5,3113.4,0.4947]
[1765705381524,0.80061911,3113.5,3113.4,0.4947]
[1765705382522,0.70433102,3113.5,3113.4,0.9806]
[1765705384322,3.91615051,3113.5,3113.4,0.9806]
[1765705384521,0.70433102,3113.5,3113.4,0.4947]
[1765705384744,3.91615051,3113.5,3113.4,0.4947]
[1765705384907,0.70433102,3113.5,3113.4,0.4947]
[1765705385097,0.70533102,3113.5,3113.4,0.4947]
[1765705386427,4.0134386,3113.5,3113.4,0.4947]
[1765705388027,4.5079386,3113.5,3113.4,0.002]
[1765705388725,4.0134386,3113.5,3113.4,0.002]
[1765705389720,4.0134386,3113.5,3113.4,0.4947]
[1765705389721,0.70533102,3113.5,3113.4,0.4947]
[1765705390224,3.91715051,3113.5,3113.4,0.4947]
[1765705400730,3.41015051,3113.5,3113.4,0.4947]
[1765705401030,3.91715051,3113.5,3113.4,0.4947]
[1765705402646,1.20003102,3113.5,3113.4,0.4947]
[1765705403111,4.41185051,3113.5,3113.4,0.4947]
[1765705404252,3.90485051,3113.5,3113.4,0.4947]
[1765705404438,4.41185051,3113.5,3113.4,0.4947]
[1765705405133,4.41185051,3113.5,3113.4,0.002]
[1765705405339,4.87985051,3113.5,3113.4,0.002]
[1765705405836,5.74528624,3113.5,3113.4,0.002]
[1765705408033,6.23358624,3113.5,3113.4,0.002]
[1765705411650,7.21956553,3113.5,3113.4,0.002]
[1765705416924,5.27728624,3113.5,3113.4,0.9039]
[1765705417121,4.41185051,3113.5,3113.4,0.4535]
[1765705417956,4.89605051,3113.5,3113.4,0.002]
[1765705418941,5.38425051,3113.5,3113.4,0.002]
[1765705424865,4.89605051,3113.5,3113.4,0.002]
[1765705431352,5.38425051,3113.5,3113.4,0.002]
[1765705434069,4.89605051,3113.5,3113.4,0.002]
[1765705434448,5.38425051,3113.5,3113.4,0.002]
[1765705434749,6.25346624,3113.5,3113.4,0.002]
[1765705437068,5.76526624,3113.5,3113.4,0.002]
[1765705437666,4.41185051,3113.5,3113.4,0.002]
[1765705439178,4.41185051,3113.5,3113.4,0.4625]
[1765705441673,4.41185051,3113.5,3113.4,0.002]
[1765705441977,4.89405051,3113.5,3113.4,0.002]
[1765705442476,5.36995051,3113.5,3113.4,0.002]
[1765705442676,6.23773624,3113.5,3113.4,0.002]
[1765705447984,5.76183624,3113.5,3113.4,0.002]
[1765705448202,6.23773624,3113.5,3113.4,0.002]
[1765705453057,5.76183624,3113.5,3113.4,0.002]
[1765705453457,6.23773624,3113.5,3113.4,0.002]
[1765705456496,7.22371553,3113.5,3113.4,0.002]
[1765705462780,7.3276065,3113.5,3113.4,0.002]
[1765705464776,6.8517065,3113.5,3113.4,0.002]
[1765705464983,7.3105065,3113.5,3113.4,0.002]
[1765705472313,6.8517065,3113.5,3113.4,0.002]
[1765705472804,6.3695065,3113.5,3113.4,0.4981]
[1765705473190,6.3695065,3113.5,3113.4,0.9638]
[1765705473609,6.3695065,3113.5,3113.4,0.4981]
[1765705474493,6.8391065,3113.5,3113.4,0.002]
[1765705474697,7.3199065,3113.5,3113.4,0.002]
[1765705475407,6.8391065,3113.5,3113.4,0.002]
[1765705476384,6.3695065,3113.5,3113.4,0.9638]
[1765705476911,6.3695065,3113.5,3113.4,0.4981]
[1765705481111,6.8391065,3113.5,3113.4,0.002]
[1765705482717,7.3199065,3113.5,3113.4,0.002]
[1765705482900,11.65701552,3113.5,3113.4,0.002]
[1765705483490,11.65693937,3113.5,3113.4,0.002]
[1765705485116,18.14693937,3113.5,3113.4,0.002]
[1765705485925,13.80983035,3113.5,3113.4,0.002]
[1765705501339,13.50868451,3113.5,3113.4,0.002]
[1765705501513,13.80972472,3113.5,3113.4,0.002]
[1765705505749,12.82192472,3113.5,3113.4,0.002]
[1765705506044,12.85932472,3113.5,3113.4,0.4595]
[1765705508514,13.34072472,3113.5,3113.4,0.002]
[1765705508944,13.79842472,3113.5,3113.4,0.002]
[1765705510149,0.98597929,3113.4,3113.0,0.4896]
[1765705510349,0.98597929,3113.4,3112.5,0.002]
[1765705510350,0.09628809,3113.1,3112.5,0.002]
[1765705510647,0.80804021,3113.0,3112.8,0.4896]
[1765705510820,0.30104021,3112.9,3112.8,0.4896]
[1765705511427,0.30104021,3112.9,3112.8,0.9471]
[1765705512329,3.51347877,3112.9,3112.8,0.9471]
[1765705513025,0.30104021,3112.9,3112.8,0.9471]
[1765705513444,3.60976686,3112.9,3112.8,0.9471]
[1765705514334,3.60976686,3112.9,3112.8,0.9491]
[1765705517456,3.60976686,3112.9,3112.8,0.4595]
[1765705517658,3.60976686,3112.9,3112.8,0.9491]
[1765705519028,0.3973283,3112.9,3112.8,0.9491]
[1765705520646,0.9043283,3112.9,3112.8,0.9491]
[1765705521737,0.80804021,3112.9,3112.8,0.9491]
[1765705522939,0.80817278,3112.9,3112.8,0.9491]
[1765705523961,4.11689943,3112.9,3112.8,0.9491]
[1765705525038,4.11689943,3112.9,3112.8,0.4595]
[1765705528435,5.08179182,3112.9,3112.8,0.4595]
[1765705530631,1.86935326,3112.9,3112.8,0.9247]
[1765705530836,1.26606517,3112.9,3112.8,0.9247]
[1765705531036,1.77306517,3112.9,3112.8,0.9247]
[1765705531254,4.98550373,3112.9,3112.8,0.9247]
[1765705531456,1.77306517,3112.9,3112.8,0.9247]
[1765705531737,4.98550373,3112.9,3112.8,0.9247]
[1765705534387,4.98550373,3112.9,3112.8,0.4595]
[1765705534563,4.98550373,3112.9,3112.8,0.002]
[1765705535468,5.44760373,3112.9,3112.8,0.002]
[1765705535642,10.33828843,3112.9,3112.5,0.4672]
[1765705535849,0.09628809,3112.7,3112.5,0.4672]
[1765705536056,0.30117278,3112.6,3112.5,0.4672]
[1765705536237,3.51392096,3112.6,3112.5,0.4672]
[1765705536439,3.51392096,3112.6,3112.5,0.957]
[1765705536666,3.51392096,3112.6,3112.5,0.4918]
[1765705536872,5.20476071,3112.6,3112.5,0.002]
[1765705537166,5.85536071,3112.6,3112.5,0.002]
[1765705538359,4.91186071,3112.6,3112.5,0.4918]
[1765705538549,4.91186071,3112.6,3112.5,0.957]
[1765705539569,5.37396071,3112.6,3112.5,0.002]
[1765705542453,4.91186071,3112.6,3112.5,0.4918]
[1765705545687,5.37396071,3112.6,3112.5,0.002]
[1765705546072,5.85536071,3112.6,3112.5,0.002]
[1765705547765,6.26086471,3112.6,3112.5,0.002]
[1765705549966,5.77946471,3112.6,3112.5,0.002]
[1765705552002,6.26086471,3112.6,3112.5,0.002]
[1765705561314,5.77946471,3112.6,3112.5,0.002]
[1765705561683,5.77946471,3112.6,3112.5,0.4733]
[1765705561684,5.31736471,3112.6,3112.5,0.4733]
[1765705562084,5.82436471,3112.6,3112.5,0.4733]
[1765705562283,5.82436471,3112.6,3112.5,0.9386]
[1765705564435,6.29256471,3112.6,3112.5,0.002]
[1765705566121,9.50531289,3112.6,3112.3,0.002]
[1765705566322,0.09628809,3112.4,3112.3,0.4673]
[1765705566531,0.09628809,3112.4,3112.3,0.002]
[1765705566532,0.39746087,3112.4,3112.3,0.002]
[1765705566691,1.84463097,3112.4,3112.3,0.002]
[1765705568212,5.0223856,3112.4,3112.3,0.002]
[1765705568418,5.0223856,3112.4,3112.3,0.9386]
[1765705570500,5.02185044,3112.4,3112.3,0.9386]
[1765705571431,4.07718034,3112.4,3112.3,0.9386]
[1765705571828,4.07718034,3112.4,3112.3,0.4733]
[1765705572019,4.58418034,3112.4,3112.3,0.9386]
[1765705572325,4.58418034,3112.4,3112.3,0.4733]
[1765705572529,4.58418034,3112.4,3112.3,0.9386]
[1765705575029,4.58418034,3112.4,3112.3,0.4733]
[1765705575707,4.58418034,3112.4,3112.3,0.9386]
[1765705577937,4.48789225,3112.4,3112.3,0.9386]
[1765705578626,1.27493762,3112.4,3112.3,0.4733]
[1765705578923,4.48789225,3112.4,3112.3,0.9386]
[1765705582208,4.48789225,3112.4,3112.3,0.03559279]
[1765705582828,4.48789225,3112.4,3112.1,4.34034392]
[1765705583139,0.39692571,3112.3,3112.1,0.002]
[1765705583328,0.30063762,3112.2,3112.1,0.002]
[1765705584403,0.30063762,3112.2,3112.1,4.34034392]
[1765705585815,0.30063762,3112.2,3112.1,0.002]
[1765705594223,0.80763762,3112.2,3112.1,0.002]
[1765705594751,0.80763762,3112.2,3112.1,0.75756847]
[1765705598018,0.80763762,3112.2,3112.1,0.78970111]
[1765705598444,0.80763762,3112.2,3112.1,3.97083282]
[1765705598645,0.30063762,3112.2,3112.1,3.97083282]
[1765705598848,0.30063762,3112.2,3112.1,4.93573762]
[1765705607859,0.30063762,3112.2,3112.1,9.27289029]
[1765705611246,0.30063762,3112.2,3112.1,9.16026069]
[1765705611447,0.30063762,3112.2,3112.1,9.1601888]
[1765705614765,0.30163762,3112.2,3112.1,9.1601888]
[1765705618068,0.30163762,3112.2,3112.1,8.195284]
[1765705620362,0.30157145,3112.2,3112.1,8.195284]
[1765705622157,0.30157145,3112.2,3112.1,8.703284]
[1765705628381,0.30157145,3112.2,3112.1,8.05834513]
[1765705629583,0.75587145,3112.2,3112.1,8.05834513]
[1765705629782,0.30157145,3112.2,3112.1,8.05834513]
[1765705631577,0.30157145,3112.2,3112.1,7.55034513]
[1765705636785,0.75587145,3112.2,3112.1,3.21326435]
[1765705636987,1.22627145,3112.2,3112.1,3.21326435]
[1765705637279,0.75587145,3112.2,3112.1,3.21326435]
[1765705637484,0.30157145,3112.2,3112.1,3.21326435]
[1765705638387,0.75587145,3112.2,3112.1,3.21326435]
[1765705639282,0.4553,3112.2,3112.1,3.21326435]
[1765705639587,0.75630097,3112.2,3112.1,3.21326435]
[1765705640085,0.75630097,3112.2,3112.0,4.84708078]
[1765705640383,0.75530097,3112.1,3112.0,3.2153676]
[1765705641687,0.75530097,3112.1,3112.0,0.002]
[1765705642068,0.30100097,3112.1,3112.0,0.002]
[1765705643491,0.30099721,3112.1,3112.0,0.002]
[1765705645086,1.22929721,3112.1,3112.0,0.002]
[1765705645293,0.77359721,3112.1,3112.0,0.002]
[1765705646494,0.77359801,3112.1,3112.0,0.002]
[1765705650194,0.30099801,3112.1,3112.0,0.002]
[1765705650767,0.76309801,3112.1,3112.0,0.002]
[1765705651173,1.24039801,3112.1,3112.0,0.002]
[1765705654305,0.76309801,3112.1,3112.0,0.002]
[1765705654607,0.30099801,3112.1,3112.0,0.002]
[1765705655470,0.30099801,3112.1,3112.0,0.4803]
[1765705656800,1.24039801,3112.1,3112.0,3.6936676]
[1765705657006,0.76309801,3112.1,3112.0,3.6936676]
[1765705657802,0.30099801,3112.1,3112.0,3.6936676]
[1765705669911,0.30099801,3112.1,3112.0,8.03151093]
[1765705673116,0.76309801,3112.1,3112.0,8.03151093]
[1765705673720,0.76409801,3112.1,3112.0,8.03151093]
[1765705675386,1.24139801,3112.1,3112.0,8.03151093]
[1765705678586,1.24139801,3112.1,3112.0,3.6936676]
[1765705678806,1.24139801,3112.1,3112.0,8.03151093]
[1765705679011,1.24139801,3112.1,3112.0,3.6936676]
[1765705680015,1.24139801,3112.1,3112.0,8.03151093]
[1765705682047,1.24139801,3112.1,3112.0,8.03161497]
[1765705683026,1.24139801,3112.1,3112.0,4.81824737]
[1765705684032,1.24139801,3112.1,3112.0,8.03161497]
[1765705685715,0.76409801,3112.1,3112.0,8.03161497]
[1765705686803,0.30199801,3112.1,3112.0,8.03161497]
[1765705697533,0.78529801,3112.1,3112.0,3.6936676]
[1765705697738,1.26959801,3112.1,3112.0,8.03161497]
[1765705698234,0.30199801,3112.1,3112.0,8.03161497]
[1765705699934,1.26959801,3112.1,3112.0,0.4803]
[1765705700117,1.26959801,3112.1,3112.0,4.81824737]
[1765705700118,1.44735781,3112.1,3112.0,4.81824737]
[1765705701130,1.26959801,3112.1,3112.0,4.81824737]
[1765705701439,0.30199801,3112.1,3112.0,8.03161497]
[1765705701935,0.30199801,3112.1,3112.0,4.81824737]
[1765705703438,0.78529801,3112.1,3112.0,4.81824737]
[1765705703739,1.29129801,3112.1,3112.0,4.81824737]
[1765705703951,1.77559801,3112.1,3112.0,4.81824737]
[1765705706247,2.27466503,3112.1,3112.0,4.81824737]
[1765705706544,1.77559801,3112.1,3112.0,4.81824737]
[1765705707066,1.77559801,3112.1,3112.0,0.4803]
[1765705707239,1.77559801,3112.1,3112.0,0.002]
[1765705708112,1.77535503,3112.1,3112.0,0.002]
[1765705708443,1.77533763,3112.1,3112.0,0.002]
[1765705709344,2.27437963,3112.1,3112.0,0.002]
[1765705715253,1.29103763,3112.1,3112.0,0.002]
[1765705716342,1.74943763,3112.1,3112.0,0.002]
[1765705721071,1.29103763,3112.1,3112.0,0.002]
[1765705721955,1.74943763,3112.1,3112.0,0.002]
[1765705725448,2.56721367,3112.1,3112.0,0.002]
[1765705727254,5.78047802,3112.1,3112.0,0.002]
[1765705727857,2.56721367,3112.1,3112.0,0.002]
[1765705728347,5.78047802,3112.1,3112.0,0.002]
[1765705736280,2.56721367,3112.1,3112.0,0.002]
[1765705737883,5.78047802,3112.1,3112.0,0.002]
[1765705741490,6.74569016,3112.1,3112.0,0.002]
[1765705741782,7.15119416,3112.1,3112.0,0.002]
[1765705743272,0.405504,3112.0,3111.5,0.002]
[1765705743485,0.76668809,3111.6,3111.5,0.002]
[1765705743785,1.57342572,3111.6,3111.5,0.002]
[1765705743981,2.17892564,3111.6,3111.5,0.002]
[1765705744184,5.39270633,3111.6,3111.5,0.002]
[1765705755298,5.39212514,3111.6,3111.5,0.002]
[1765705755470,6.26233364,3111.6,3111.5,0.002]
[1765705769417,6.13363372,3111.6,3111.5,0.002]
[1765705781136,2.91985303,3111.6,3111.5,0.002]
[1765705781334,6.13363372,3111.6,3111.5,0.002]
[1765705782634,6.71410901,3111.6,3111.5,0.002]
[1765705782849,6.71410901,3111.6,3111.3,0.002]
[1765705783134,0.54888809,3111.4,3111.3,0.002]
[1765705783321,4.64350709,3111.4,3111.3,0.002]
[1765705783520,5.11960709,3111.4,3111.3,0.002]
[1765705786631,5.24832482,3111.4,3111.3,0.002]
[1765705789117,4.77222482,3111.4,3111.3,0.002]
[1765705789741,4.31962482,3111.4,3111.3,0.002]
[1765705789906,5.35341612,3111.4,3111.3,0.002]
[1765705790536,1.55895356,3111.4,3111.3,0.002]
[1765705790736,0.39644453,3111.4,3111.3,0.002]
[1765705795823,0.90344453,3111.4,3111.3,0.002]
[1765705802730,0.90387508,3111.4,3111.3,0.002]
[1765705804055,0.39687508,3111.4,3111.3,0.002]
[1765705804256,0.90387508,3111.4,3111.3,0.002]
[1765705805154,0.39687508,3111.4,3111.3,0.002]
[1765705805331,0.90387508,3111.4,3111.3,0.002]
[1765705806457,0.80758699,3111.4,3111.3,0.002]
[1765705806955,0.90387508,3111.4,3111.3,0.002]
[1765705808056,0.39687508,3111.4,3111.3,0.002]
[1765705808253,0.90387508,3111.4,3111.3,0.002]
[1765705812264,0.80758699,3111.4,3111.3,0.002]
[1765705812632,0.30058699,3111.4,3111.3,4.3434353]
[1765705812860,0.80758699,3111.4,3111.3,4.3434353]
[1765705813067,0.30058699,3111.4,3111.3,5.42082982]
[1765705813372,0.80758699,3111.4,3111.3,5.42082982]
[1765705813669,0.80758699,3111.4,3111.3,6.38599228]
[1765705815557,0.80758699,3111.4,3111.3,0.96716246]
[1765705815766,0.80758699,3111.4,3111.3,4.18125303]
[1765705816851,0.30058699,3111.4,3111.3,8.52268833]
[1765705819731,0.30058699,3111.4,3111.3,4.18125303]
[1765705819933,0.30058699,3111.4,3111.3,8.52268833]
[1765705820136,0.30058699,3111.4,3111.3,9.69657704]
[1765705824591,0.30058699,3111.4,3111.3,5.35514174]
[1765705830075,0.77228699,3111.4,3111.3,5.35514174]
[1765705830381,0.30058699,3111.4,3111.3,0.002]
[1765705845404,0.30068613,3111.4,3111.3,0.002]
[1765705847602,0.77238613,3111.4,3111.3,0.002]
[1765705847778,1.26388613,3111.4,3111.3,0.002]
[1765705848704,0.77238613,3111.4,3111.3,0.002]
[1765705849012,0.30068613,3111.4,3111.3,0.002]
[1765705849680,1.26388613,3111.4,3111.3,0.002]
[1765705849875,1.76235413,3111.4,3111.3,0.002]
[1765705857815,1.27085413,3111.4,3111.3,0.002]
[1765705860385,0.30068613,3111.4,3111.3,0.002]
[1765705862118,0.76188613,3111.4,3111.3,0.002]
[1765705862829,1.23398613,3111.4,3111.3,0.002]
[1765705866928,0.76188613,3111.4,3111.3,0.002]
[1765705868211,0.30068613,3111.4,3111.3,0.002]
[1765705868517,0.80668613,3111.4,3111.3,0.002]
[1765705877835,0.30068613,3111.4,3111.3,0.002]
[1765705878038,0.80668613,3111.4,3111.3,0.002]
[1765705884048,1.26788613,3111.4,3111.3,0.002]
[1765705884231,1.73998613,3111.4,3111.3,0.002]
[1765705884439,1.26788613,3111.4,3111.3,0.002]
[1765705884618,1.73998613,3111.4,3111.3,0.002]
[1765705885047,1.44198474,3111.4,3111.3,0.002]
[1765705885251,1.91518474,3111.4,3111.3,0.002]
[1765705891429,1.74108613,3111.4,3111.3,0.002]
[1765705892452,0.30068613,3111.4,3111.3,0.002]
[1765705892642,0.80668613,3111.4,3111.3,0.002]
[1765705893047,1.29258613,3111.4,3111.3,0.002]
[1765705893345,1.77058613,3111.4,3111.3,0.002]
[1765705895859,1.29258613,3111.4,3111.3,0.002]
[1765705896058,0.80668613,3111.4,3111.3,0.002]
[1765705905243,0.80668613,3111.4,3111.3,0.96725872]
[1765705907069,0.80668613,3111.4,3111.3,4.18134929]
[1765705915749,0.80668613,3111.4,3111.3,0.96725872]
[1765705916277,1.29318613,3111.4,3111.3,0.96725872]
[1765705917319,1.29318613,3111.4,3111.3,4.18134929]
[1765705917581,1.29318613,3111.4,3111.3,0.96725872]
[1765705917876,1.29318613,3111.4,3111.3,4.18134929]
[1765705918748,1.29318613,3111.4,3111.3,0.96725872]
[1765705918946,1.29318613,3111.4,3111.3,4.18134929]
[1765705919377,1.29318613,3111.4,3111.3,0.96725872]
[1765705919947,0.80668613,3111.4,3111.3,0.96725872]
[1765705920282,0.80668613,3111.4,3111.3,4.18134929]
[1765705920762,0.80668613,3111.4,3111.3,0.96725872]
[1765705920763,1.79268613,3111.4,3111.3,0.96725872]
[1765705922086,1.29318613,3111.4,3111.3,0.96725872]
[1765705922465,1.79268613,3111.4,3111.3,0.96725872]
[1765705922782,1.28668613,3111.4,3111.3,0.96725872]
[1765705924276,0.78718613,3111.4,3111.3,0.96725872]
[1765705928685,0.30068613,3111.4,3111.3,0.96725872]
[1765705932174,1.28668613,3111.4,3111.3,0.96725872]
[1765705943978,1.28668613,3111.4,3111.3,0.002]
[1765705944178,1.73690941,3111.4,3111.3,0.002]
[1765705949620,0.30076049,3111.4,3111.3,0.002]
[1765705951216,0.30076049,3111.4,3111.3,0.4952]
[1765705952321,0.30076049,3111.4,3111.3,3.70929057]
[1765705965330,0.30076049,3111.4,3111.3,0.4952]
[1765705967362,0.77286049,3111.4,3111.3,0.4952]
[1765705967631,1.26606049,3111.4,3111.3,0.002]
[1765705976127,1.26600199,3111.4,3111.3,0.002]
[1765705983560,0.30070199,3111.4,3111.3,0.002]
[1765705983964,0.78660199,3111.4,3111.3,0.002]
[1765705984267,1.26660199,3111.4,3111.3,0.002]
[1765705984456,0.78660199,3111.4,3111.3,0.002]
[1765705985366,0.30070199,3111.4,3111.3,0.002]
[1765705990470,0.30070199,3111.4,3111.3,0.13271027]
[1765705991442,0.30070199,3111.4,3111.3,3.34680084]
[1765705994873,0.30070199,3111.4,3111.3,0.13271027]
[1765705995078,0.30070199,3111.4,3111.3,3.34680084]
[1765706000475,0.30070199,3111.4,3111.3,0.13271027]
[1765706002082,0.30070199,3111.4,3111.3,3.34680084]
[1765706009391,0.30070199,3111.4,3111.3,0.13271027]
[1765706009888,0.30070199,3111.4,3111.3,3.34680084]
[1765706010385,0.30076322,3111.4,3111.3,3.34680084]
[1765706016309,0.30076322,3111.4,3111.3,0.13271027]
[1765706016482,0.30078886,3111.4,3111.3,0.13271027]
[1765706017114,0.30078886,3111.4,3111.3,3.34680084]
[1765706035924,0.30078886,3111.4,3111.3,7.68649061]
[1765706037710,0.30078886,3111.4,3111.3,7.68648331]
[1765706040591,1.26138886,3111.4,3111.3,4.47239274]
[1765706040809,1.26138886,3111.4,3111.3,0.13271027]
[1765706044431,1.26138886,3111.4,3111.3,3.34680084]
[1765706044952,1.26138886,3111.4,3111.3,0.13271027]
[1765706045617,1.26138886,3111.4,3111.3,0.002]
[1765706045823,1.7090076,3111.4,3111.3,0.002]
[1765706046028,1.26138886,3111.4,3111.3,0.002]
[1765706051825,1.76738886,3111.4,3111.3,0.002]
[1765706056720,1.76721358,3111.4,3111.3,0.002]
[1765706070959,1.4666,3111.4,3111.3,0.002]
[1765706071145,1.76731821,3111.4,3111.3,0.002]
[1765706073939,1.95377884,3111.4,3111.3,0.002]
[1765706075254,1.9537798,3111.4,3111.3,0.002]
[1765706075458,2.05006789,3111.4,3111.3,0.002]
[1765706078062,1.74934872,3111.4,3111.3,0.002]
[1765706078268,2.0500112,3111.4,3111.3,0.002]
[1765706085167,5.26399847,3111.4,3111.3,0.002]
[1765706087184,2.0500112,3111.4,3111.3,0.002]
[1765706089673,5.26399847,3111.4,3111.3,0.002]
[1765706090578,5.39471785,3111.4,3111.3,0.002]
[1765706095154,5.80022185,3111.4,3111.3,0.002]
[1765706095862,0.71413058,3111.4,3111.3,0.002]
[1765706096075,1.22013058,3111.4,3111.3,0.002]
[1765706096455,4.43411785,3111.4,3111.3,0.002]
[1765706096880,5.38281785,3111.4,3111.3,0.002]
[1765706097874,5.25209847,3111.4,3111.3,0.002]
[1765706101295,4.75589847,3111.4,3111.3,0.002]
[1765706101670,5.25209847,3111.4,3111.3,0.002]
[1765706110707,2.0381112,3111.4,3111.3,0.002]
[1765706110876,1.5419112,3111.4,3111.3,0.002]
[1765706111600,1.0894112,3111.4,3111.3,0.002]
[1765706111795,4.30339847,3111.4,3111.3,0.002]